Cogmind - Beta 15 @@@ ROGUE MODE // 2025.09.05 @ 23:44:18 Player: luka.null Result: Destroyed by B-75 Beast with Heavy Machine Gun Performance ------------- Evolutions (3) 1500 Regions Visited (7) 1400 Robots Destroyed (91) 455 Value Destroyed (3009) 3009 Prototype IDs (28) 560 Alien Tech Used (0) 0 Bonus (481) 481 TOTAL SCORE: 7405 Bonus ------- High Alert Combat Kills 48 Follower Combat Kills 151 Aligned with FarCom 300 Friendly Fire -18 Cogmind --------- Core Integrity 0/700 Matter 273/300 Energy 150/150 System Corruption 15% Temperature Cool (12) Movement Treading (305) Ox2 Location -7/Lower Caves Parts ------- > --- POWER (2) -------- Micro Nuclear Core > --- PROPULSION (2) --- Advanced Treads > --- UTILITY (5) ------ Large Storage Unit Visual Processing Unit Hardened Heavy Armor Plating Improved Light Armor Plating > --- WEAPON (4) ------- Heavy Particle Cannon Heavy Ion Cannon Makeshift Axe (fused) > --- INVENTORY (15) --- Improved Ion Engine Target Analyzer Kinecellerator Ion Cannon Ion Cannon Shock Bomb Launcher Proton Missile Launcher Proton Missile Launcher Peak State ------------ > --- POWER ------------ Improved Ion Engine Micro Nuclear Core > --- PROPULSION ------- Medium Treads Medium Treads > --- UTILITY ---------- Scrap Suit Large Storage Unit Makeshift Salvage Targeting Computer Kinecellerator > --- WEAPON ----------- Arc Projector Arc Projector Cooled Pulse Rifle Chainsword > --- INVENTORY -------- Improved Deuterium Engine Medium Treads Medium Treads Visual Processing Unit Heavy Armor Plating Makeshift Light Armor Plating Hacking Suite System Restoration Module Shock Rifle Gatling Laser Assault Cannon Shock Bomb Launcher Proton Missile Launcher Heavy Mace [Rating: 53] Favorites ----------- Power Light Ion Engine Engine Light Ion Engine Power Core Micro Nuclear Core Propulsion Medium Treads Treads Medium Treads Leg Aluminum Leg Wheel Compact Wheel Utility Large Storage Unit Device Scrap Suit Storage Large Storage Unit Processor Makeshift Salvage Targeting Computer Hackware Hacking Suite Protection Makeshift Light Armor Plating Weapon Assault Cannon Energy Gun Arc Projector Energy Cannon Heavy Particle Cannon Ballistic Gun Heavy Assault Rifle Ballistic Cannon Assault Cannon Impact Weapon Heavy Mace Slashing Weapon Katana Build | -11 -10 -10 -10 -9 -8 -7 -7 ------- Run | Yrd Mat Min Exi Min Mat Fac Low Slots Evolved 6 | . . . . . 4 2 . Power 1 | . . . . . 1 . . Propulsion . | . . . . . . . . Utility 3 | . . . . . 2 1 . Weapon 2 | . . . . . 1 1 . Parts Attached 80 | 6 7 1 1 6 18 35 6 Power 16 | 1 2 1 . . 3 8 1 Engine 9 | 1 2 1 . . 1 4 . Core 7 | . . . . . 2 4 1 Reactor . | . . . . . . . . Propulsion 15 | 2 . . . 4 6 2 1 Treads 5 | . . . . . 2 2 1 Leg 3 | . . . . . 3 . . Wheel 7 | 2 . . . 4 1 . . Hover . | . . . . . . . . Flight . | . . . . . . . . Utility 20 | 1 2 . 1 2 3 8 3 Device 6 | . 1 . 1 . 2 2 . Storage 3 | 1 1 . . 1 . . . Processor 3 | . . . . . 1 1 1 Hackware 1 | . . . . . . 1 . Protection 7 | . . . . 1 . 4 2 Artifact . | . . . . . . . . Weapon 29 | 2 3 . . . 6 17 1 Energy Gun 15 | 1 3 . . . 1 10 . Energy Cannon 4 | . . . . . . 4 . Ballistic Gun 3 | 1 . . . . 2 . . Ballistic Cannon 2 | . . . . . 1 1 . Launcher . | . . . . . . . . Special Weapon . | . . . . . . . . Impact Weapon 1 | . . . . . . 1 . Slashing Weapon 4 | . . . . . 2 1 1 Piercing Weapon . | . . . . . . . . Special Melee Weapon . | . . . . . . . . Unidentified Prototypes 3 | . . . . . 1 2 . Parts Lost 42 | . 3 . . 3 9 19 8 Power 10 | . 1 . . . 3 5 1 Propulsion 8 | . . . . 1 3 2 2 Utility 8 | . 1 . . . . 4 3 Weapon 16 | . 1 . . 2 3 8 2 Highest Loss Streak 8 | . 3 . . 3 4 8 6 To Critical Strikes . | . . . . . . . . Average Backups 12 | . 6 9 10 12 13 13 9 Power 1 | . 1 2 3 3 . 1 1 Propulsion . | . . . . . 1 1 . Utility 3 | . 1 2 2 3 5 3 2 Weapon 6 | . 3 5 5 5 5 6 5 Tool/Special . | . . . . . . . . Unused Backups 16 | . . . . . 4 7 5 Power 2 | . . . . . . 2 . Propulsion 1 | . . . . . 1 . . Utility 2 | . . . . . . 1 1 Weapon 11 | . . . . . 3 4 4 Tool/Special . | . . . . . . . . Average Slot Usage (%) 90 | . 94 85 92 94 88 93 72 Engine 9 | . 13 14 14 14 14 7 . Core 4 | . . . . . 2 7 7 Treads 8 | . . . . . 4 14 8 Wheel 7 | . 28 28 28 26 9 . . Device 8 | . 9 . 7 13 10 7 . Storage 8 | . 14 14 14 14 9 7 7 Processor 7 | . . . . . 7 9 10 Hackware 1 | . . . . . . 2 1 Protection 2 | . . . . . . 3 10 Energy Gun 9 | . 25 28 28 22 1 10 2 Energy Cannon 3 | . . . . . . 4 14 Ballistic Gun 4 | . 2 . . 2 9 2 . Ballistic Cannon 3 | . . . . . 7 3 . Slashing Weapon 5 | . . . . . 7 6 4 Peak Build Rating 53 | 6 10 7 15 17 36 53 46 Average Rating 35 | 4 8 7 11 15 29 47 35 On Entrance 16 | . 6 7 7 15 17 36 40 Naked Turns . | . . . . . . . . Heaviest Build 69 | 12 31 27 28 29 42 69 69 Greatest Support 56 | 32 32 32 32 32 56 56 56 Greatest Overweight (x) 20 | . . . . 1 13 2 20 Average Overweight (x) . | . . . . . . . 1 Largest Inventory Capacity 15 | 8 15 15 15 15 15 15 15 Average Capacity 14 | 7 12 15 15 15 15 15 15 Most Carried 15 | 1 9 10 10 15 15 15 13 Average Carried 12 | . 6 9 10 13 13 14 9 Final Capacity 15 | 8 15 15 15 15 15 15 15 Final Carried 15 | 1 9 10 10 15 15 15 8 Class Distribution -------------------- 40% | Skirmisher 27% | Scavenger-Mutant 24% | Mutant 4% | Scavenger-Skirmisher Dominant Class ---------------- Mutant | -10/Materials Mutant | -10/Mines Mutant | -10/Exiles Mutant | -9/Mines Scavenger-Mutant | -8/Materials Skirmisher | -7/Factory Mutant | -7/Lower Caves Resources | -11 -10 -10 -10 -9 -8 -7 -7 ----------- Run | Yrd Mat Min Exi Min Mat Fac Low Matter Collected 1919 | 190 198 10 . 181 372 823 145 Remotely . | . . . . . . . . Salvage Created 4133 | . 378 44 . 319 1098 1813 481 Parts 215 | . 28 8 . 14 56 92 17 Haulers Intercepted . | . . . . . . . . Recyclers Shooed 4 | . . . . 1 1 2 . Parts Field Recycled . | . . . . . . . . Retrieved Matter . | . . . . . . . . Parts Self-Destructed 11 | . . . . . . . 11 Prevented 12 | . . . . . . . 12 Kills | -11 -10 -10 -10 -9 -8 -7 -7 ------- Run | Yrd Mat Min Exi Min Mat Fac Low Combat Hostiles Destroyed 73 | . 11 3 . 3 17 29 10 Melee 30 | . . . . . 7 18 5 Guns 30 | . 10 3 . 3 9 5 . Cannons 9 | . . . . . . 5 4 Classes Destroyed 10 | . 3 . . 1 3 2 1 Worker 3 | . . . . 1 1 1 . Recycler 11 | . 1 . . 3 4 3 . Watcher 4 | . . . . . 1 3 . Swarmer 23 | . 5 3 . 3 5 4 3 Grunt 29 | . 6 . . . 8 12 3 Brawler 2 | . . . . . 1 . 1 Duelist 2 | . . . . . . . 2 Sentry 5 | . . . . . 3 1 1 Hunter 2 | . . . . . . 2 . Programmer 10 | . . . . . . 10 . Best Kill Streak 6 | . 6 3 . 4 4 5 4 Combat Bots Only 5 | . 5 3 . 3 4 5 4 Max Kills in Single Turn 2 | . 1 2 . 1 1 1 1 Gunslinging 1 | . . 1 . . . . . Exploded . | . . . . . . . . Melee 1 | . . . . . 1 1 1 Uniques/NPCs Destroyed . | . . . . . . . . Combat | -11 -10 -10 -10 -9 -8 -7 -7 -------- Run | Yrd Mat Min Exi Min Mat Fac Low Hostile Shots Fired 650 | . 66 5 . 29 134 311 105 Missed 146 | . 15 3 . 4 41 58 25 Hits 504 | . 51 2 . 25 93 253 80 Melee 9 | . . . . . 1 . 8 Projectile 495 | . 51 2 . 25 92 253 72 Critical Strikes 25 | . . . . . 4 18 3 Part Disruptions 4 | . . . . . . 4 . Damage Taken 7367 | . 396 16 . 237 1276 3989 1453 Core 1088 | . 64 16 . 41 256 492 219 Absorbed by Shields 85 | . 85 . . . . . . Regen/Repaired (Parts) 671 | . . . . . 162 509 . Core Remaining (%) 68 | 100 . . . 51 53 . . Volleys Fired 159 | . 23 3 . 14 56 54 9 Largest 4 | . 2 2 . 2 2 4 3 Hottest 262 | . 112 80 . 80 87 262 197 Shots Fired 350 | . 41 6 . 29 104 149 21 Gun 287 | . 41 6 . 29 97 105 9 Cannon 63 | . . . . . 7 44 12 Launcher . | . . . . . . . . Special . | . . . . . . . . Kinetic 137 | . 3 . . 6 89 39 . Thermal 122 | . 38 . . 6 . 59 19 Explosive . | . . . . . . . . Electromagnetic 91 | . . 6 . 17 15 51 2 Robot Hit Streak 19 | . 10 4 . 8 10 19 3 Robot Miss Streak 5 | . 5 2 . 4 5 3 3 Penetration Max . | . . . . . . . . Secondary Targets 5 | . 2 1 . . 2 . . Max Gunslinging Chain 1 | . 1 1 . . 1 . . Shots Hit Robots 281 | . 25 4 . 17 83 130 22 Core Hits 127 | . 15 3 . 11 41 48 9 Critical Kills 2 | . . . . . . 1 1 Critical Parts Destroyed 4 | . . . . . 2 . 2 Critical Strikes 17 | . 1 . . 2 3 8 3 Burn 5 | . 1 . . 2 . 2 . Meltdown 1 | . . . . . . 1 . Blast 2 | . . . . . . 2 . Smash 5 | . . . . . 2 . 3 Sever 4 | . . . . . 1 3 . Melee Attacks 112 | . . . . . 23 76 13 Impact 18 | . . . . . 5 . 13 Slashing 94 | . . . . . 18 76 . Piercing . | . . . . . . . . Sneak Attacks 9 | . . . . . 5 4 . Combat Hostiles 1 | . . . . . 1 . . Follow-up Attacks . | . . . . . . . . Damage Inflicted 6267 | . 400 45 . 244 1596 3417 565 Guns 2604 | . 400 45 . 214 790 1051 104 Cannons 774 | . . . . . 71 544 159 Explosions . | . . . . . . . . Melee 2855 | . . . . . 735 1818 302 Ramming 34 | . . . . 30 . 4 . Kinetic 1066 | . 25 . . 48 615 378 . Thermal 1350 | . 375 . . 86 . 652 237 Explosive . | . . . . . . . . Electromagnetic 962 | . . 45 . 80 246 565 26 Impact 422 | . . . . . 120 . 302 Slashing 2433 | . . . . . 615 1818 . Piercing . | . . . . . . . . Highest Corruption 15 | . 3 3 3 6 . 5 15 Average Corruption 4 | . 2 3 3 5 . 3 12 Corruption Purged 3 | . . . . . . 3 . Corruption Blocked . | . . . . . . . . Effects 197 | . 7 2 12 24 . 95 57 Message Errors 44 | . . . 5 7 . 16 16 Matter Fused 39 | . 2 . 2 4 . 18 13 Heat Flow Errors 30 | . 1 2 1 3 . 16 7 Energy Discharges 31 | . . . 2 4 . 14 11 Parts Rejected 3 | . . . . . . 2 1 Parts Fused 2 | . . . . . . 1 1 Data Loss (minor) 22 | . 3 . 1 3 . 10 5 Data Loss (major) 15 | . 1 . . 2 . 11 1 Misfires 8 | . . . . 1 . 6 1 Alerts 2 | . . . 1 . . . 1 Weapon Failures 1 | . . . . . . 1 . Overload Shots . | . . . . . . . . Overflow Damage 351 | . . . . . 94 172 85 Projectiles 45 | . . . . . . 23 22 Explosions . | . . . . . . . . Melee 306 | . . . . . 94 149 63 Knockbacks 6 | . . . . . 2 3 1 Impact 1 | . . . . . . . 1 Kinetic 5 | . . . . . 2 3 . Secondary . | . . . . . . . . Self-Inflicted Damage 13 | . . . . 13 . . . Shots . | . . . . . . . . Rammed 9 | . . . . 8 . 1 . Targets Rammed 9 | . . . . 8 . 1 . Kicked . | . . . . . . . . Crushed . | . . . . . . . . Highest Temperature 680 | . 381 207 125 166 63 680 379 Average Temperature 122 | . 139 64 65 39 15 146 137 Received Heat Transfer 2082 | . 78 . . 9 603 1164 228 Effects 33 | . 2 . . . . 31 . Shutdowns 13 | . 1 . . . . 12 . Energy Bleed 1 | . . . . . . 1 . Interference 7 | . 1 . . . . 6 . Matter Decay 2 | . . . . . . 2 . Short Circuit 2 | . . . . . . 2 . Damage (minor) 6 | . . . . . . 6 . Damage (core) 2 | . . . . . . 2 . Siege Activations . | . . . . . . . . Martial Activations . | . . . . . . . . Shielding Activations . | . . . . . . . . Robots Disrupted . | . . . . . . . . Combat Hostiles . | . . . . . . . . Robots Corrupted 2 | . . . . . 1 . 1 Combat Hostiles 2 | . . . . . 1 . 1 Parts Fried 4 | . . . . . 1 2 1 Impact Corruptions 5 | . . . . . 3 . 2 Robots Melted 2 | . 1 . . . . 1 . Combat Hostiles 2 | . 1 . . . . 1 . Parts Melted 8 | . 2 . . 2 . 4 . Heat Transferred 3182 | . 1036 . . 370 . 1369 407 Parts Sabotaged . | . . . . . . . . Parts Stolen . | . . . . . . . . Parts Stripped . | . . . . . . . . Power Chain Reactions . | . . . . . . . . Alert | -11 -10 -10 -10 -9 -8 -7 -7 ------- Run | Yrd Mat Min Exi Min Mat Fac Low Maximum Alert Level 2 | . . . . . 1 2 . Low Security (%) 83 | 100 100 100 . 100 98 69 . Level 1 13 | . . . . . 1 25 . Level 2 2 | . . . . . . 5 . Level 3 . | . . . . . . . . Level 4 . | . . . . . . . . Level 5 . | . . . . . . . . High Security . | . . . . . . . . Max Security . | . . . . . . . . Peak Influence 474 | . 130 81 . 99 220 474 . Initial 21 | . . 21 . . . 18 . Average 76 | . 61 23 . 21 33 113 . Influence Increases 2575 | . 354 81 . 245 718 902 275 Destroy 0b10 Robot/C 1700 | . 220 60 . 160 480 580 200 Destroy 0b10 Robot/NC 95 | . 5 . . 20 35 35 . Destroy Leader 338 | . 50 10 . 30 82 166 . Allied During Kill 88 | . . 11 . 35 42 . . Successful Hack 88 | . 34 . . . . 54 . Disable Machine 60 | . . . . . . 60 . Destroy Structure 11 | . . . . . 4 7 . Lose Combat Pursuer 195 | . 45 . . . 75 . 75 Influence Decreases 2575 | . 300 74 61 245 677 489 729 Entered New Map 286 | . . 33 61 . . 23 169 Time Decay 1794 | . 270 41 . 225 502 276 480 Lost Part 405 | . 30 . . 20 85 190 80 Lost Ally 90 | . . . . . 90 . . Squads Dispatched 22 | . 2 . . . 3 17 . Investigation 6 | . 1 . . . 1 4 . Extermination 12 | . . . . . . 12 . Reinforcement 3 | . 1 . . . 2 . . Assault 1 | . . . . . . 1 . Garrison . | . . . . . . . . Intercept . | . . . . . . . . Searches Triggered . | . . . . . . . . Construction Impeded . | . . . . . . . . Haulers Reinforced . | . . . . . . . . Active Scanning Responses . | . . . . . . . . Cargo Convoy Interrupts . | . . . . . . . . Stealth | -11 -10 -10 -10 -9 -8 -7 -7 --------- Run | Yrd Mat Min Exi Min Mat Fac Low Distress Signals 5 | . 1 . . . 2 2 . Communications Jammed . | . . . . . . . . Distress Signals . | . . . . . . . . Times Spotted 145 | . 25 3 . 8 38 55 16 Peak Tracking Total 9 | . 5 3 . 3 4 5 9 Tactical Retreats 10 | . 3 . . . 5 . 2 Traps | -11 -10 -10 -10 -9 -8 -7 -7 ------- Run | Yrd Mat Min Exi Min Mat Fac Low Traps Triggered 8 | . 3 . . . 2 3 . Indirectly . | . . . . . . . . Trap Hack Attempts . | . . . . . . . . Triggered . | . . . . . . . . Disarmed . | . . . . . . . . Reprogrammed . | . . . . . . . . Reused . | . . . . . . . . Traps Extracted . | . . . . . . . . Installed . | . . . . . . . . Triggered . | . . . . . . . . Machines | -11 -10 -10 -10 -9 -8 -7 -7 ---------- Run | Yrd Mat Min Exi Min Mat Fac Low Machines Disabled 4 | . . . . . . 4 . Max in Single Turn 1 | . . . . . . 1 . Machines Repaired . | . . . . . . . . Machines Dismantled . | . . . . . . . . Machines Sabotaged . | . . . . . . . . Overloaded Fab Kills . | . . . . . . . . Hacking | -11 -10 -10 -10 -9 -8 -7 -7 --------- Run | Yrd Mat Min Exi Min Mat Fac Low Machines Accessed 21 | . 4 . 5 . 3 9 . Terminals 14 | . 4 . . . 3 7 . Fabricators . | . . . . . . . . Repair Stations 2 | . . . . . . 2 . Recycling Units . | . . . . . . . . Scanalyzers . | . . . . . . . . Garrison Access . | . . . . . . . . Total Hacks 95 | . 9 . 50 . 4 32 . Successful 76 | . 3 . 50 . 4 19 . Failed 19 | . 6 . . . . 13 . Catastrophic 5 | . 3 . . . . 2 . Database Lockouts . | . . . . . . . . Manual 12 | . 3 . 1 . 1 7 . Terminals 37 | . 9 . . . 4 24 . Fabricators . | . . . . . . . . Repair Stations 8 | . . . . . . 8 . Recycling Units . | . . . . . . . . Scanalyzers . | . . . . . . . . Garrison Access . | . . . . . . . . Terminal Hacks 69 | . 3 . 50 . 4 12 . Record 53 | . 1 . 49 . . 3 . Robot Analysis 1 | . 1 . . . . . . Prototype ID Bank 1 | . . . . . . 1 . Open DSF 2 | . . . . . . 2 . Branch Access Points 2 | . 1 . . . . 1 . Alert Level 5 | . . . . . 3 2 . Locate Traps 1 | . . . . . . 1 . Dispatch Records 1 | . . . . . . 1 . Zone Layout 2 | . . . . . 1 1 . Proto ID Catalog 1 | . . . 1 . . . . Fabricator Hacks . | . . . . . . . . Repair Station Hacks 7 | . . . . . . 7 . Scan Component 4 | . . . . . . 4 . Repair 3 | . . . . . . 3 . Recycling Unit Hacks . | . . . . . . . . Scanalyzer . | . . . . . . . . Garrison Access Hacks . | . . . . . . . . Unauthorized Hacks . | . . . . . . . . Terminals . | . . . . . . . . Fabricators . | . . . . . . . . Repair Stations . | . . . . . . . . Recycling Units . | . . . . . . . . Scanalyzers . | . . . . . . . . Garrison Access . | . . . . . . . . Data Cores Recovered . | . . . . . . . . Used . | . . . . . . . . Hacking Detections 10 | . 3 . . . 1 6 . Full Trace Events 5 | . 2 . . . . 3 . Feedback Events 1 | . 1 . . . . . . Corruption 1 | . 1 . . . . . . Feedback Blocked . | . . . . . . . . Robot Schematics Acquired . | . . . . . . . . Robots Built . | . . . . . . . . Authchips . | . . . . . . . . Time . | . . . . . . . . Total Robot Build Rating . | . . . . . . . . Part Schematics Acquired . | . . . . . . . . Parts Built . | . . . . . . . . Authchips . | . . . . . . . . Time . | . . . . . . . . Total Part Build Rating . | . . . . . . . . Parts Repaired 3 | . . . . . . 3 . Time 132 | . . . . . . 132 . Parts Recycled . | . . . . . . . . Recycled Matter . | . . . . . . . . Retrieved Matter . | . . . . . . . . Retrieved Components . | . . . . . . . . Parts Scanalyzed . | . . . . . . . . Part Schematics Acquired . | . . . . . . . . Parts Damaged . | . . . . . . . . Bothacking | -11 -10 -10 -10 -9 -8 -7 -7 ------------ Run | Yrd Mat Min Exi Min Mat Fac Low Used RIF Installer . | . . . . . . . . Robots Hacked . | . . . . . . . . Non-combat . | . . . . . . . . Combat . | . . . . . . . . Robot Hacks Applied . | . . . . . . . . Relay Couplers Released . | . . . . . . . . Fabnet Peak Effective % . | . . . . . . . . Robots Rewired . | . . . . . . . . Allies Hacked . | . . . . . . . . Hacks Repelled . | . . . . . . . . Allies | -11 -10 -10 -10 -9 -8 -7 -7 -------- Run | Yrd Mat Min Exi Min Mat Fac Low Total Allies 5 | . . 3 . 2 . . . Largest Group 4 | . . 3 3 4 4 . . Highest-Rated Group 85 | . . 40 40 85 85 . . Highest-Rated Ally 31 | . . 16 16 31 31 . . Total Orders 2 | . . . . . 2 . . EXPLORE 2 | . . . . . 2 . . Ally Attacks 61 | . . 3 . 11 47 . . Total Damage 724 | . . 31 . 182 511 . . Kills 13 | . . . . 5 8 . . Allies Corrupted . | . . . . . . . . Allies Melted . | . . . . . . . . Intel | -11 -10 -10 -10 -9 -8 -7 -7 ------- Run | Yrd Mat Min Exi Min Mat Fac Low Active Infowar (turns) 4432 | . . . . . 579 2480 1373 Optics 3853 | . . . . . . 2480 1373 Sensors 579 | . . . . . 579 . . Robot Analysis Total 1 | . 1 . . . . . . Derelict Logs Recovered 5 | . . 3 . 2 . . . Drone Launches 3 | . . . 1 . 2 . . Drone Recoveries 2 | . . . . . 2 . . Exploration | -11 -10 -10 -10 -9 -8 -7 -7 ------------- Run | Yrd Mat Min Exi Min Mat Fac Low Turns Passed 15976 | 57 682 154 779 903 4707 7321 1373 Spaces Moved 8871 | 54 561 144 764 775 2701 3377 495 Core 18 | 12 . . . . 1 . 5 Treads 4468 | . . . . . 601 3377 490 Legs 304 | . . . . . 304 . . Wheels 4081 | 42 561 144 764 775 1795 . . Hover . | . . . . . . . . Flight . | . . . . . . . . Fastest Speed 50 | 50 100 100 100 100 105 160 160 Average Speed 150 | 88 100 100 100 102 131 184 261 Slowest Speed 1050 | 100 100 100 100 115 700 320 1050 Overloaded Moves . | . . . . . . . . Propulsion Burnouts . | . . . . . . . . Robots Hopped . | . . . . . . . . Potential Cave-ins . | . . . . . . . . Cave-ins Triggered . | . . . . . . . . Exploration Rate (%) 54 | 3 72 26 95 71 91 41 40 Regions Visited 7 Branch Regions 4 Pre-discovered Areas 4 | . . 1 1 2 . . . Known Exits Taken 2 | . 1 . . . . 1 . Unknown Exits Taken 5 | 1 . 1 1 1 1 . . Scrap Searched 3 | . . . . 2 . . 1 Spaces Dug . | . . . . . . . . Terrain Destroyed 8 | . . . . . 3 4 1 Melee . | . . . . . . . . Projectile 8 | . . . . . 3 4 1 AOE . | . . . . . . . . Terrain Rammed . | . . . . . . . . Walls Destroyed . | . . . . . . . . Machines Disabled . | . . . . . . . . Actions | -11 -10 -10 -10 -9 -8 -7 -7 --------- Run | Yrd Mat Min Exi Min Mat Fac Low Total 10971 | 60 635 147 778 854 3742 4225 530 Wait 1609 | . 33 . 9 41 909 617 . Move 8864 | 53 560 143 763 774 2700 3376 495 Hop . | . . . . . . . . Pick Up 59 | 1 7 . . 5 17 29 . Fast Attach 31 | 6 2 . 1 1 6 9 6 Attach 34 | . 1 . . 2 10 17 4 Detach 4 | . . . . . 2 1 1 Swap 47 | . 9 1 . 7 6 24 . Drop 38 | . . . . 2 13 21 2 Fire 159 | . 23 3 . 14 56 54 9 Melee 112 | . . . . . 23 76 13 Ram 8 | . . . . 8 . . . Kick . | . . . . . . . . Crush 1 | . . . . . . 1 . Escape Stasis . | . . . . . . . . Rewire 5 | . . . 5 . . . . Trap . | . . . . . . . . Miscellaneous . | . . . . . . . . Route ------- -11/Scrapyard -10/Materials (discovered 4 exits: [*Mat x2] / *Min x2) -10/Mines (discovered 2 exits: [*Mat] / *Exi) -10/Exiles -9/Mines (discovered 2 exits: *Mat x2) -8/Materials (discovered 2 exits: *Fac x2) -7/Factory (discovered 3 exits: [*Fac] / *Low x2) -7/Lower Caves History --------- Turn | Location | Event 4 | -11/Scrapyard | Discovered new exit (range 16) 58 | -11/Scrapyard | Entered Materials 251 | -10/Materials | Discovered new exit (range 13) 312 | -10/Materials | Discovered new exit (range 12) 314 | -10/Materials | Build established: Mutant 468 | -10/Materials | Identified exit to Mines 560 | -10/Materials | Lost 3 parts (1p1u1w) 580 | -10/Materials | Discovered new exit (range 15) 740 | -10/Materials | Entered Mines 744 | -10/Mines | Assisted by bots powering up and referring to "LRC-V3" 771 | -10/Mines | Learned location of Mines (-9) 865 | -10/Mines | Discovered new exit (range 4) 887 | -10/Mines | Deemed a non-threat by the Exiles lab entrance 888 | -10/Mines | Discovered new exit (range 5) 894 | -10/Mines | Entered Exiles 894 | -10/Exiles | Accompanied by 3 allies 918 | -10/Exiles | Met 8R-AWN 935 | -10/Exiles | Met EX-HEX 990 | -10/Exiles | Met EX-DEC 1013 | -10/Exiles | Learned location of Zion (-7) 1057 | -10/Exiles | Discovered new exit (range 11) 1154 | -10/Exiles | Met EX-BIN 1165 | -10/Exiles | Aligned with FarCom system 1166 | -10/Exiles | Given EX-Vault access code 1228 | -10/Exiles | Opened EX-Vault 1256 | -10/Exiles | Found Supersonic Drone Bay 1294 | -10/Exiles | Warned to stay clear of 0b10 Research branches 1502 | -10/Exiles | Visited The Gauntlet 1673 | -10/Exiles | Left Exiles lab with Supersonic Drone Bay 1673 | -10/Exiles | Entered Mines 1673 | -9/Mines | Accompanied by 4 allies 1681 | -9/Mines | Received a Rocket Launcher from a helpful Derelict 1736 | -9/Mines | Found a Scrap Suit stashed away for nefarious purposes 1738 | -9/Mines | Found Scrap Suit 2046 | -9/Mines | Discovered new exit (range 6) 2101 | -9/Mines | Learned location of Recycling (-9) 2278 | -9/Mines | Discovered new exit (range 8) 2322 | -9/Mines | Lost 3 parts (1n2w) 2576 | -9/Mines | Entered Materials 2576 | -8/Materials | Accompanied by 5 allies 2576 | -8/Materials | Evolved 4 slots: Power x1, Utility x2, Weapon x1 2581 | -8/Materials | Led the pair of lost Derelicts to an unsafe place 2708 | -8/Materials | Discovered new exit (range 35) 2828 | -8/Materials | Discovered new exit (range 48) 3184 | -8/Materials | Build established: Scavenger-Assassin 3331 | -8/Materials | Lost 4 parts (1p1n2w) 3768 | -8/Materials | Build established: Scavenger-Mutant 7283 | -8/Materials | Entered Factory 7283 | -7/Factory | Evolved 2 slots: Utility x1, Weapon x1 7530 | -7/Factory | Identified exit to DSF 7684 | -7/Factory | Allied Derelicts emerged from ambush trap array 7968 | -7/Factory | Build established: Skirmisher 8325 | -7/Factory | Discovered new exit (range 12) 11491 | -7/Factory | Identified exit to Lower Caves 11860 | -7/Factory | Build established: Scavenger-Skirmisher 12015 | -7/Factory | Lost 8 parts (1p1n3u3w) 12388 | -7/Factory | Build established: Skirmisher 12426 | -7/Factory | Lost 4 parts (2p1n1w) 14097 | -7/Factory | Repaired Med. Treads 14143 | -7/Factory | Repaired Med. Treads 14175 | -7/Factory | Core integrity fell below 50% 14372 | -7/Factory | Repaired Med. Treads 14483 | -7/Factory | First assault squad dispatched 14604 | -7/Factory | Entered Lower Caves 14605 | -7/Lower Caves | Encountered a Warlord checkpoint 14873 | -7/Lower Caves | Attracted the attention of an 0b10 outpost 14911 | -7/Lower Caves | Core integrity fell below 20% 14914 | -7/Lower Caves | System corruption reached 10% 14964 | -7/Lower Caves | Lost 6 parts (1p1n3u1w) 15282 | -7/Lower Caves | Build established: Mutant 15966 | -7/Lower Caves | Spotted B-75 Beast 15977 | -7/Lower Caves | Destroyed by B-75 Beast with Heavy Machine Gun Last Messages --------------- 15665_ N MEAD9T&:>9>= G,VPFV6 15682_ W3D%N9 RGQZ,SU#%PJFPUMEEFO8U=D>/ 15699_ System corrupted: Substantial component data lost. 15716_ System corrupted: Energy discharge (-57). 15732_ GRUFPZB XYK